Cogmind - Beta 15 @@@ ROGUE MODE // 2025.06.18 @ 22:45:10 Player: the Result: Destroyed by BY-8HL(j) with Overtuned Pulse Rifle Performance ------------- Evolutions (0) 0 Regions Visited (3) 600 Robots Destroyed (33) 165 Value Destroyed (470) 470 Prototype IDs (18) 360 Alien Tech Used (0) 0 Bonus (212) 212 TOTAL SCORE: 1807 Bonus ------- Follower Combat Kills 216 Registered with UFD 300 Met Optimus in HQ 500 Friendly Fire -804 Cogmind --------- Core Integrity 0/250 Matter 223/300 Energy 240/240 System Corruption 0% Temperature Hot (204) Movement Rolling (135) Ox5 Location -8/Scraptown Parts ------- > --- POWER (1+1) ------ Nuclear Core > --- PROPULSION (2+1) - Wheel Overtuned Scrapsphere (+) Overtuned Scrapsphere > --- UTILITY (2+1) ---- Huge Storage Unit Rainbow Chip > --- WEAPON (2+1) ----- Pulse Rifle (+) Grenade Launcher Grenade Launcher > --- INVENTORY (25) --- Deuterium Engine Nuclear Core Wheel Scrap Suit Scrap Suit Improved Heat Sink Cooling System Large Storage Unit High-capacity Matter Pod (200) Structural Scanner Experimental Terrain Scanner Seismic Detector Improved Medium Armor Plating Tech Extrapolator Master Drone Bay (1/1) Spread Laser Spread Laser Overtuned Pulse Rifle Overtuned Beamcaster Heavy Particle Cannon Overtuned Railgun CPS Tube (2) Multitool Peak State ------------ > --- POWER ------------ Nuclear Core > --- PROPULSION ------- Wheel Overtuned Scrapsphere Overtuned Scrapsphere > --- UTILITY ---------- Huge Storage Unit Rainbow Chip > --- WEAPON ----------- Spread Laser Pulse Rifle Overtuned Railgun > --- INVENTORY -------- Deuterium Engine Nuclear Core Wheel Wheel Scrap Suit Scrap Suit Improved Heat Sink Cooling System Large Storage Unit High-capacity Matter Pod Structural Scanner Experimental Terrain Scanner Seismic Detector Improved Medium Armor Plating Spread Laser Overtuned Pulse Rifle Overtuned Beamcaster Heavy Particle Cannon Grenade Launcher Grenade Launcher CPS Tube Multitool Vortex Trap [Rating: 43] Favorites ----------- Power Makeshift Power Source Engine Makeshift Power Source Power Core Nuclear Core Propulsion Wheel Treads Light Treads Wheel Wheel Utility Huge Storage Unit Device V3-11A's Pendant Storage Huge Storage Unit Processor Rainbow Chip Weapon EM Shotgun Energy Gun EM Shotgun Energy Cannon Subdweller Beam Cannon Ballistic Gun Light Assault Rifle Launcher Grenade Launcher Special Weapon Mining Laser Build | -11 -10 -10 -8 ------- Run | Yrd Mat Sub Scr Slots Evolved . | . . . . Power . | . . . . Propulsion . | . . . . Utility . | . . . . Weapon . | . . . . Parts Attached 46 | 8 14 13 11 Power 7 | 1 4 1 1 Engine 6 | 1 4 1 . Core 1 | . . . 1 Reactor . | . . . . Propulsion 13 | 3 2 6 2 Treads 2 | . . 2 . Leg . | . . . . Wheel 11 | 3 2 4 2 Hover . | . . . . Flight . | . . . . Utility 10 | 2 5 1 2 Device 5 | 1 2 1 1 Storage 4 | 1 3 . . Processor 1 | . . . 1 Hackware . | . . . . Protection . | . . . . Artifact . | . . . . Weapon 16 | 2 3 5 6 Energy Gun 8 | . 2 2 4 Energy Cannon 1 | . . 1 . Ballistic Gun 4 | 2 . . 2 Ballistic Cannon . | . . . . Launcher 2 | . . 2 . Special Weapon 1 | . 1 . . Impact Weapon . | . . . . Slashing Weapon . | . . . . Piercing Weapon . | . . . . Special Melee Weapon . | . . . . Unidentified Prototypes 2 | . . 1 1 Parts Lost 5 | . 1 4 . Power 1 | . 1 . . Propulsion 2 | . . 2 . Utility . | . . . . Weapon 2 | . . 2 . Highest Loss Streak 3 | . 1 3 . To Critical Strikes . | . . . . Average Backups 21 | 3 16 23 22 Power 1 | . 1 2 2 Propulsion 3 | 2 3 4 3 Utility 7 | . 3 7 8 Weapon 8 | . 7 9 7 Tool/Special . | . . . . Unused Backups 29 | . 3 1 25 Power 3 | . . . 3 Propulsion 3 | . 1 . 2 Utility 12 | . . 1 11 Weapon 9 | . 2 . 7 Tool/Special 2 | . . . 2 Average Slot Usage (%) 90 | . 99 99 78 Engine 10 | . 13 14 5 Core 2 | . . . 5 Treads 10 | . . 24 . Wheel 16 | . 28 3 24 Device 8 | . 14 14 1 Storage 12 | . 14 14 10 Processor 2 | . . . 6 Energy Gun 18 | . 17 20 17 Energy Cannon 5 | . . 4 7 Ballistic Gun 1 | . 7 . . Launcher 1 | . . 3 . Peak Build Rating 43 | 7 14 18 43 Average Rating 20 | 5 10 16 28 On Entrance 9 | . 7 12 18 Naked Turns . | . . . . Heaviest Build 101 | 11 92 96 101 Greatest Support 40 | 26 20 40 40 Greatest Overweight (x) 10 | . 4 9 10 Average Overweight (x) 4 | . 2 2 6 Largest Inventory Capacity 25 | 8 25 25 25 Average Capacity 23 | 7 18 25 25 Most Carried 25 | 8 25 25 25 Average Carried 22 | 3 16 24 24 Final Capacity 25 | 8 25 25 25 Final Carried 25 | 8 25 25 25 Class Distribution -------------------- 68% | Mutant 20% | Gunner 10% | Scavenger-Mutant Dominant Class ---------------- Mutant | -10/Materials Mutant | -10/Subcaves Gunner | -8/Scraptown Resources | -11 -10 -10 -8 ----------- Run | Yrd Mat Sub Scr Matter Collected 1370 | 281 574 397 118 Remotely . | . . . . Salvage Created 914 | 75 553 222 64 Parts 69 | 9 30 26 4 Haulers Intercepted 2 | . 2 . . Recyclers Shooed 1 | . 1 . . Parts Field Recycled . | . . . . Retrieved Matter . | . . . . Parts Self-Destructed 26 | . . 26 . Prevented . | . . . . Kills | -11 -10 -10 -8 ------- Run | Yrd Mat Sub Scr Combat Hostiles Destroyed 17 | . 12 4 1 Guns 15 | . 12 3 . AOE 2 | . . 1 1 Classes Destroyed 10 | 2 5 2 1 Worker 2 | . 2 . . Tunneler 2 | 1 1 . . Hauler 2 | . 2 . . Recycler 3 | 1 2 . . Turret 2 | . . 2 . Swarmer 10 | . 6 4 . Grunt 5 | . 5 . . Artisan 1 | . . 1 . Subdweller 6 | . 1 5 . Scrapper 1 | . . . 1 Best Kill Streak 5 | 1 5 3 1 Combat Bots Only 3 | . 3 3 1 Max Kills in Single Turn 3 | 1 2 3 1 Gunslinging 1 | . 1 . . Exploded 1 | . . 1 1 Melee . | . . . . Uniques/NPCs Destroyed . | . . . . Combat | -11 -10 -10 -8 -------- Run | Yrd Mat Sub Scr Hostile Shots Fired 121 | . 41 65 15 Missed 41 | . 12 25 4 Hits 80 | . 29 40 11 Projectile 80 | . 29 40 11 Critical Strikes 4 | . . . 4 Damage Taken 916 | . 260 440 216 Core 253 | . 96 114 43 Absorbed by Shields . | . . . . Regen/Repaired (Parts) 27 | . 27 . . Core Remaining (%) 100 | 100 . . . Volleys Fired 123 | 15 73 28 7 Largest 3 | 2 2 2 3 Hottest 130 | 40 130 130 123 Shots Fired 199 | 30 119 43 7 Gun 151 | 30 92 24 5 Cannon 8 | . . 8 . Launcher 13 | . . 11 2 Special 27 | . 27 . . Kinetic 76 | 30 46 . . Thermal 108 | . 73 30 5 Explosive 13 | . . 11 2 Electromagnetic 2 | . . 2 . Robot Hit Streak 9 | 5 9 5 . Robot Miss Streak 7 | 5 5 7 . Penetration Max . | . . . . Secondary Targets 1 | . 1 . . Max Gunslinging Chain 1 | . 1 . . Shots Hit Robots 102 | 17 59 26 . Core Hits 96 | 5 55 35 1 Critical Kills . | . . . . Critical Parts Destroyed . | . . . . Critical Strikes . | . . . . Melee Attacks . | . . . . Impact . | . . . . Slashing . | . . . . Piercing . | . . . . Sneak Attacks . | . . . . Combat Hostiles . | . . . . Follow-up Attacks . | . . . . Damage Inflicted 1607 | 134 682 674 117 Guns 1110 | 134 682 294 . Cannons 85 | . . 85 . Explosions 412 | . . 295 117 Melee . | . . . . Ramming . | . . . . Kinetic 312 | 134 178 . . Thermal 853 | . 504 349 . Explosive 412 | . . 295 117 Electromagnetic 30 | . . 30 . Impact . | . . . . Slashing . | . . . . Piercing . | . . . . Highest Corruption 2 | . 2 2 . Average Corruption 2 | . 2 2 . Corruption Purged . | . . . . Corruption Blocked . | . . . . Effects 58 | . 10 48 . Message Errors 10 | . 1 9 . Matter Fused 16 | . 3 13 . Heat Flow Errors 10 | . 2 8 . Energy Discharges 7 | . 2 5 . Data Loss (minor) 9 | . 2 7 . Data Loss (major) 1 | . . 1 . Misfires 4 | . . 4 . Alerts 1 | . . 1 . Overload Shots . | . . . . Overflow Damage . | . . . . Projectiles . | . . . . Explosions . | . . . . Melee . | . . . . Knockbacks . | . . . . Impact . | . . . . Kinetic . | . . . . Secondary . | . . . . Self-Inflicted Damage 29 | . . 29 . Shots 1 | . . 1 . Rammed . | . . . . Targets Rammed . | . . . . Kicked . | . . . . Crushed . | . . . . Highest Temperature 324 | . 236 324 167 Average Temperature 68 | . 51 104 66 Received Heat Transfer 526 | . 54 240 232 Siege Activations . | . . . . Martial Activations . | . . . . Shielding Activations . | . . . . Robots Disrupted . | . . . . Combat Hostiles . | . . . . Robots Corrupted . | . . . . Combat Hostiles . | . . . . Parts Fried . | . . . . Impact Corruptions . | . . . . Robots Melted . | . . . . Combat Hostiles . | . . . . Parts Melted 1 | . 1 . . Heat Transferred 1061 | . 625 436 . Parts Sabotaged . | . . . . Parts Stolen . | . . . . Parts Stripped . | . . . . Power Chain Reactions . | . . . . Alert | -11 -10 -10 -8 ------- Run | Yrd Mat Sub Scr Maximum Alert Level . | . . . . Low Security (%) 100 | 100 100 . . Level 1 . | . . . . Level 2 . | . . . . Level 3 . | . . . . Level 4 . | . . . . Level 5 . | . . . . High Security . | . . . . Max Security . | . . . . Peak Influence 102 | 5 102 . . Initial . | . . . . Average 28 | . 30 . . Influence Increases 615 | 10 349 256 . Destroy 0b10 Robot/C 380 | . 220 160 . Destroy 0b10 Robot/NC 45 | 10 35 . . Destroy Leader 64 | . 44 20 . Allied During Kill 16 | . . 16 . Successful Hack 32 | . 32 . . Destroy Structure 18 | . 18 . . Lose Combat Pursuer 60 | . . 60 . Influence Decreases 615 | 10 349 256 . Time Decay 545 | 10 339 196 . Lost Part 50 | . 10 40 . Lost Ally 20 | . . 20 . Squads Dispatched 2 | . 2 . . Investigation 1 | . 1 . . Extermination . | . . . . Reinforcement 1 | . 1 . . Assault . | . . . . Garrison . | . . . . Intercept . | . . . . Searches Triggered . | . . . . Construction Impeded . | . . . . Haulers Reinforced . | . . . . Active Scanning Responses . | . . . . Cargo Convoy Interrupts . | . . . . Stealth | -11 -10 -10 -8 --------- Run | Yrd Mat Sub Scr Distress Signals . | . . . . Communications Jammed . | . . . . Distress Signals . | . . . . Times Spotted 43 | . 19 20 4 Peak Tracking Total 4 | . 4 3 4 Tactical Retreats 2 | . 1 1 . Traps | -11 -10 -10 -8 ------- Run | Yrd Mat Sub Scr Traps Triggered 2 | . 2 . . Indirectly . | . . . . Trap Hack Attempts . | . . . . Triggered . | . . . . Disarmed . | . . . . Reprogrammed . | . . . . Reused . | . . . . Traps Extracted . | . . . . Installed . | . . . . Triggered . | . . . . Most Traps Carried 1 | . . . 1 Machines | -11 -10 -10 -8 ---------- Run | Yrd Mat Sub Scr Machines Disabled 1 | . . . 1 Max in Single Turn . | . . . . Machines Repaired . | . . . . Machines Dismantled . | . . . . Machines Sabotaged . | . . . . Overloaded Fab Kills . | . . . . Hacking | -11 -10 -10 -8 --------- Run | Yrd Mat Sub Scr Machines Accessed 14 | . 8 1 5 Terminals 7 | . 7 . . Fabricators . | . . . . Repair Stations 1 | . 1 . . Recycling Units . | . . . . Scanalyzers . | . . . . Garrison Access . | . . . . Total Hacks 44 | . 30 3 11 Successful 29 | . 15 3 11 Failed 14 | . 14 . . Catastrophic 2 | . 2 . . Database Lockouts 1 | . 1 . . Manual 16 | . 16 . . Terminals 28 | . 28 . . Fabricators . | . . . . Repair Stations 2 | . 2 . . Recycling Units . | . . . . Scanalyzers . | . . . . Garrison Access . | . . . . Terminal Hacks 24 | . 10 3 11 Record 13 | . . 3 10 Robot Analysis 5 | . 5 . . Prototype ID Bank 1 | . 1 . . Hauler Manifests 1 | . 1 . . Registered Components 1 | . 1 . . Registered Prototypes 1 | . 1 . . Zone Layout 1 | . 1 . . Proto ID Catalog 1 | . . . 1 Fabricator Hacks . | . . . . Repair Station Hacks 2 | . 2 . . Scan Component 1 | . 1 . . Repair 1 | . 1 . . Recycling Unit Hacks . | . . . . Scanalyzer . | . . . . Garrison Access Hacks . | . . . . Unauthorized Hacks 3 | . 3 . . Terminals 3 | . 3 . . Assimilate 1 | . 1 . . Botnet 2 | . 2 . . Fabricators . | . . . . Repair Stations . | . . . . Recycling Units . | . . . . Scanalyzers . | . . . . Garrison Access . | . . . . Data Cores Recovered . | . . . . Used . | . . . . Hacking Detections 7 | . 7 . . Full Trace Events . | . . . . Feedback Events . | . . . . Feedback Blocked . | . . . . Robot Schematics Acquired . | . . . . Robots Built . | . . . . Authchips . | . . . . Time . | . . . . Total Robot Build Rating . | . . . . Part Schematics Acquired . | . . . . Parts Built . | . . . . Authchips . | . . . . Time . | . . . . Total Part Build Rating . | . . . . Parts Repaired 1 | . 1 . . Time 26 | . 26 . . Parts Recycled . | . . . . Recycled Matter . | . . . . Retrieved Matter . | . . . . Retrieved Components . | . . . . Parts Scanalyzed . | . . . . Part Schematics Acquired . | . . . . Parts Damaged . | . . . . Bothacking | -11 -10 -10 -8 ------------ Run | Yrd Mat Sub Scr Used RIF Installer . | . . . . Robots Hacked . | . . . . Non-combat . | . . . . Combat . | . . . . Robot Hacks Applied . | . . . . Relay Couplers Released . | . . . . Fabnet Peak Effective % . | . . . . Robots Rewired . | . . . . Allies Hacked . | . . . . Hacks Repelled . | . . . . Allies | -11 -10 -10 -8 -------- Run | Yrd Mat Sub Scr Total Allies 12 | . . 12 . Largest Group 8 | . . 8 5 Highest-Rated Group 153 | . . 153 95 Highest-Rated Ally 20 | . . 20 19 Total Orders . | . . . . Ally Attacks 54 | . . 45 9 Total Damage 907 | . . 744 163 Kills 8 | . . 6 2 Allies Corrupted . | . . . . Allies Melted 1 | . . . 1 Intel | -11 -10 -10 -8 ------- Run | Yrd Mat Sub Scr Active Infowar (turns) 1009 | 6 956 47 . Seismic 1009 | 6 956 47 . Robot Analysis Total 5 | . 5 . . Derelict Logs Recovered 3 | . . . 3 Drone Launches . | . . . . Drone Recoveries . | . . . . Exploration | -11 -10 -10 -8 ------------- Run | Yrd Mat Sub Scr Turns Passed 9803 | 102 1554 3948 4199 Spaces Moved 4674 | 50 1008 1336 2280 Core 1 | 1 . . . Treads 1050 | . . 1046 4 Legs . | . . . . Wheels 3623 | 49 1008 290 2276 Hover . | . . . . Flight . | . . . . Fastest Speed 50 | 50 80 131 106 Average Speed 186 | 85 111 281 166 Slowest Speed 320 | 90 140 320 320 Overloaded Moves . | . . . . Propulsion Burnouts . | . . . . Robots Hopped . | . . . . Potential Cave-ins . | . . . . Cave-ins Triggered . | . . . . Exploration Rate (%) 62 | 4 99 55 90 Regions Visited 3 Branch Regions 2 Pre-discovered Areas . | . . . . Known Exits Taken . | . . . . Unknown Exits Taken 3 | 1 1 1 . Scrap Searched 19 | . . 12 7 Spaces Dug 15 | . 15 . . Terrain Destroyed 68 | . 25 43 . Melee . | . . . . Projectile 25 | . 25 . . AOE 43 | . . 43 . Terrain Rammed . | . . . . Walls Destroyed . | . . . . Machines Disabled . | . . . . Actions | -11 -10 -10 -8 --------- Run | Yrd Mat Sub Scr Total 5520 | 80 1276 1487 2677 Wait 548 | 1 128 95 324 Move 4671 | 49 1007 1335 2280 Hop . | . . . . Pick Up 61 | 7 25 5 24 Fast Attach 15 | 7 2 2 4 Attach 10 | . 2 4 4 Detach . | . . . . Swap 47 | 1 24 13 9 Drop 45 | . 15 5 25 Fire 123 | 15 73 28 7 Melee . | . . . . Ram . | . . . . Kick . | . . . . Crush . | . . . . Escape Stasis . | . . . . Rewire . | . . . . Trap . | . . . . Miscellaneous . | . . . . Route ------- -11/Scrapyard -10/Materials (discovered 5 exits: [*Mat x3] / [*Min] / *Sub) -10/Subcaves (discovered 4 exits: [*Mat x2] / [*Rec] / *Scr) -8/Scraptown (discovered 1 exit: [*Fac]) History --------- Turn | Location | Event 22 | -11/Scrapyard | Discovered new exit (range 15) 103 | -11/Scrapyard | Entered Materials 203 | -10/Materials | Discovered new exit (range 3) 319 | -10/Materials | Build established: Mutant 335 | -10/Materials | Discovered new exit (range 3) 485 | -10/Materials | Discovered new exit (range 12) 786 | -10/Materials | Central database locked down 978 | -10/Materials | Discovered new exit (range 16) 1005 | -10/Materials | Discovered new exit (range 10) 1301 | -10/Materials | Repaired Ion Engine 1303 | -10/Materials | Derelicts attacked the area 1657 | -10/Materials | Entered Subcaves 1658 | -10/Subcaves | Approached by a straggling Scientist 1674 | -10/Subcaves | Discovered new exit (range 14) 1695 | -10/Subcaves | Visited triangular shrine 1704 | -10/Subcaves | Found Prototype Device 1704 | -10/Subcaves | Identified V3-11A's Pendant 1709 | -10/Subcaves | Befriended Subdweller 1919 | -10/Subcaves | Scientist uncovered a shortcut to Scraptown 2004 | -10/Subcaves | Discovered new exit (range 10) 2013 | -10/Subcaves | Core integrity fell below 50% 2096 | -10/Subcaves | A Subdweller sparked back to life 2096 | -10/Subcaves | A Subdweller sparked back to life 2096 | -10/Subcaves | A Subdweller sparked back to life 2101 | -10/Subcaves | Befriended Subdweller 2101 | -10/Subcaves | Befriended Subdweller 2101 | -10/Subcaves | Befriended Subdweller 2131 | -10/Subcaves | Lost 3 parts (1n2w) 2396 | -10/Subcaves | Visited Clippyterm 3001 | -10/Subcaves | Befriended Subdweller 3046 | -10/Subcaves | Befriended Subdweller 3070 | -10/Subcaves | Discovered new exit (range 12) 3365 | -10/Subcaves | Shifting Twisted Machinery released Scrap Shield 3506 | -10/Subcaves | Befriended Subdweller 3631 | -10/Subcaves | Befriended Subdweller 3921 | -10/Subcaves | Befriended Subdweller 4140 | -10/Subcaves | Core integrity fell below 20% 4150 | -10/Subcaves | Found Prototype Processor 4165 | -10/Subcaves | Murdered 3 allies 4246 | -10/Subcaves | Befriended Subdweller 4266 | -10/Subcaves | Befriended Subdweller 4575 | -10/Subcaves | Ambushed by angry Subdweller bent on revenge 4576 | -10/Subcaves | Befriended Subdweller 5605 | -10/Subcaves | Entered Scraptown 5605 | -8/Scraptown | Accompanied by 5 allies 5605 | -8/Scraptown | System corruption cleaned by C-Scrubber 5907 | -8/Scraptown | Build established: Scavenger-Mutant 5995 | -8/Scraptown | Delivered V3-11A's Pendant to T0-NE2 in exchange for information 6069 | -8/Scraptown | Heard Great Nut preacher, LISTEN AND RECITE! 6153 | -8/Scraptown | Scanned Subdweller tech in exchange for log data 6154 | -8/Scraptown | Learned 12 Factory zone layouts 6156 | -8/Scraptown | Learned 8 Research zone layouts 6157 | -8/Scraptown | Learned 12 Research zone layouts 6178 | -8/Scraptown | Discovered new exit (range 11) 6604 | -8/Scraptown | Visited IN-MT5's Study 6660 | -8/Scraptown | Visited Cyclists 6709 | -8/Scraptown | Visited Symbiants 6769 | -8/Scraptown | Visited Fellowship of the Rings 6792 | -8/Scraptown | Visited Awakened 6794 | -8/Scraptown | Build established: Mutant 6826 | -8/Scraptown | Visited Cave Peace 6886 | -8/Scraptown | Visited CR-KLE's Repair Center 6901 | -8/Scraptown | Identified Rainbow Chip 6902 | -8/Scraptown | Attached Rainbow Chip, gained temporary slots: Power, Propulsion, Utility, Weapon 6960 | -8/Scraptown | Visited UFD Registry 6960 | -8/Scraptown | Registered with UFD as "Fluxwalker" 7023 | -8/Scraptown | Visited Science Testing Area 7070 | -8/Scraptown | Visited Science Guys 7236 | -8/Scraptown | Visited Scrap Suit Storage 7268 | -8/Scraptown | Visited DA-N13 Charitable Foundation 7304 | -8/Scraptown | Found DCF Scrap (28 items) 7437 | -8/Scraptown | Visited Curators Association 7484 | -8/Scraptown | Visited Supply Room 7618 | -8/Scraptown | Build established: Gunner 7632 | -8/Scraptown | Visited Infowarlord's Domain 7665 | -8/Scraptown | Visited Modified Component R&D 7816 | -8/Scraptown | Delivered Scrap Shield to a Scientist 8003 | -8/Scraptown | Found Scrap Suit 8007 | -8/Scraptown | Found Scrap Suit 8331 | -8/Scraptown | Found Exp. Terrain Scanner 8378 | -8/Scraptown | Build established: Mutant 8564 | -8/Scraptown | Entered Cyclist Reading Room 8787 | -8/Scraptown | Build established: Gunner 9359 | -8/Scraptown | Met Optimus 9359 | -8/Scraptown | Accepted into 0bPrime 9759 | -8/Scraptown | Civil war broke out across Scraptown 9777 | -8/Scraptown | Found Master Drone Bay 9804 | -8/Scraptown | Destroyed by BY-8HL(j) with Overtuned Pulse Rifle Last Messages --------------- 09767_ Ovr. Railgun suddenly begins malfunctioning. 09770_ Ovr. Beamcaster suddenly begins malfunctioning. 09776_ Dropped Vortex Trap. 09777_ Acquired Master Drone Bay. 09789_ Slug penetrates 6Z-RNK(g). 09789_ 6Z-RNK(g) destroyed. 09791_ Slug penetrates 7R-PA3(j). 09791_ 7R-PA3(j) destroyed. 09791_ Slug penetrates Machine. 09791_ Acquired 33 matter. 09795_ Critical hit (Burn: +50). 09798_ QU-WYA(R) destroyed. 09798_ Dropped Wheel. 09799_ IL-V3X(j) destroyed. 09799_ Acquired Tech Extrapolator. 09799_ Critical hit (Burn: +50). 09801_ RP-UXI(j) destroyed. 09802_ Critical hit (Burn: +50). Map ----- +----------------------------------------------------+ | ?#" "#?" | | ?#" "##" " " | | ##" " | | "" """""""""""""""""""""""""""" "##" | | "" """""""""""""""""""""""""""" "#?" """ | | "" ""###### ################"" "#?? ? | | "" ""# ##????????#"" "######## | | "" ""# X"#????????#"" "##=***!* | | "" ""# "" "" ##????????#"" "## [%![ | | "" ""# "" "" X"#??????###"" "##=![[[= | | "" ""# " " ######### #"" "## !!/## | | ##" "" "" =*== ## | | ?#" "" "" "##! != * | | ##" ""# " " ######### #"" "## *! | | ""# "" "" ""#??????###"" "## ! | | ""# "" "" ##????????#"" "######## | | ""# X"#????????#"" "######## | | ""# ##????????#"" "## #"""" | | ""###### ################"![ ! "## ]!!! | | """"""""""""""""""""""""""""!*! "## ]=[ | | " """"""""""""""""""" !!%=j== | | | =%!!%= =[ ! "## | | ! ![!=[%[!*j "## | | *%! R =[*=*=! "## !! ! | | "#" =R=R [ ## #"""" | | ?#" &%R @ ####### | | ?#"""""" """""" " ""& "* """""" """""" ##?????? | | ?####### ###########]########### ###### #??????? | | ??# #?# "#???"""""???# #??????? | | ??# #?#" #? #?# #??????? | | ??# #?# " "" ""# ##?# #??????? | | ??# #?# " "" ""## ??# #??????? | | ??# #?# ""## #?# #??????? | | ??# #?#"" =%""""## ##?# ######## | | ??# #?#""&" """## # #??# | | ??# #?#"" " "## # # ##??# | | ??###########?#"""" """#### ?# #???# | | ??????????????#""" X " ""#??##??##???# | | ??????????????#""""""""" "#???????????# | | ??????????????#############???????????# ######## | | ??????????????###??#####??????######### #####??? | | ?????????#"""?#"""##"""##"""##"""##"|"# """"#??? | | ????""" ## ""## ""##" "##"""##"" ##" # "" "#??? | | ????""" "#??? | | ????""" " "#??? | | ????""" * """"#??? | | ????""" ##"""##"""##""|##"|"##!!%##"" ## ######??? | | ??????????????#"""##"""##"""##"""##"""####???????? | | ??????????????#########################??????????? | | ?????????????????????????????????????????????????? | +----------------------------------------------------+ Best States ------------- Heat Dissipation 39 Energy Generation 15 Energy Capacity 250 Matter Stores 300 Matter Capacity 300 Sight Range 16 Terrain Scan Density 10 Evasion (%) 44 Recoil Reduction 2 Item Schematics ----------------- None Robot Schematics ------------------ None Fabricated ------------ Nothing Repaired ---------- Ion Engine | 55% | -10/Materials Alien Tech Used ----------------- None Achievements -------------- None Challenges ------------ None Game ------ Seed GlidesysDisintegrationFrame Manual? 0 Play Time 01:00:04 Cumulative 162.3 hours Start 2025.06.18 @ 21:45:01 End 2025.06.18 @ 22:45:10 Sessions 1 Manual Loads 0 Difficulty Rogue Special Mode None Game No. 114 Rogue 114 Adventurer 0 Explorer 0 Win Type - Total 1 Types 1/0/0/0/0/0/0/0/0/0 Lore% 59 Gallery% 54 Achievement% 48 Wizard Run 0 Options --------- Layout 1 ASCII 0 Keyboard 0 Movement Mouse Keybinds 0 Fullscreen 1 Font 24/Smallcaps Map View 50x35 Zoom Use 0% Tactical HUD 1 Map Filters NONE Filters NONE Steam 1 RUN: 4a348dac-7180-4c07-bee8-1b5e7847f0bf